[Event "Early-Titled-Tuesday-Blitz-June-18-2024"]
[Site "Chess.com"]
[Date "2024.06.18"]
[Round "8"]
[White "David_ATM"]
[Black "ejalmedina"]
[Result "0-1"]
[WhiteElo "2413"]
[BlackElo "2332"]
[TimeControl "180+1"]
[EndTime "9:31:30 PDT"]
[Termination "ejalmedina won by checkmate"]

1. e4 {[%clk 0:03:00.9]} 1... e5 {[%clk 0:02:54.6]} 2. Nf3 {[%clk 0:03:00.4]}
2... Nc6 {[%clk 0:02:53.8]} 3. Bb5 {[%clk 0:03:01]} 3... a6 {[%clk 0:02:53.8]}
4. Ba4 {[%clk 0:03:01.3]} 4... Nf6 {[%clk 0:02:53]} 5. O-O {[%clk 0:03:01.9]}
5... Be7 {[%clk 0:02:53.3]} 6. Re1 {[%clk 0:03:01.7]} 6... b5 {[%clk 0:02:53.4]}
7. Bb3 {[%clk 0:03:01.7]} 7... d6 {[%clk 0:02:54]} 8. c3 {[%clk 0:03:00.5]} 8...
O-O {[%clk 0:02:53.6]} 9. h3 {[%clk 0:03:00.2]} 9... Na5 {[%clk 0:02:53.7]} 10.
Bc2 {[%clk 0:03:00.2]} 10... c5 {[%clk 0:02:54.3]} 11. d4 {[%clk 0:03:00.2]}
11... Qc7 {[%clk 0:02:54.8]} 12. Nbd2 {[%clk 0:02:51.6]} 12... cxd4 {[%clk
0:02:54.4]} 13. cxd4 {[%clk 0:02:51.6]} 13... Nc6 {[%clk 0:02:54.9]} 14. d5
{[%clk 0:02:27.8]} 14... Nb4 {[%clk 0:02:54.8]} 15. Bb1 {[%clk 0:02:27.6]} 15...
a5 {[%clk 0:02:55]} 16. Nf1 {[%clk 0:02:22.3]} 16... Bd7 {[%clk 0:02:53.1]} 17.
Be3 {[%clk 0:02:19.5]} 17... Rfc8 {[%clk 0:02:50]} 18. Re2 {[%clk 0:02:19.6]}
18... a4 {[%clk 0:02:36]} 19. a3 {[%clk 0:02:19.1]} 19... Na6 {[%clk 0:02:35.1]}
20. Bd3 {[%clk 0:02:01.8]} 20... Qb7 {[%clk 0:02:32]} 21. Rc1 {[%clk 0:01:59.7]}
21... Bd8 {[%clk 0:02:17.1]} 22. Rec2 {[%clk 0:01:58.6]} 22... Bb6 {[%clk
0:02:09.9]} 23. Qe2 {[%clk 0:01:55.2]} 23... Bxe3 {[%clk 0:02:02.7]} 24. Qxe3
{[%clk 0:01:49.9]} 24... Nc5 {[%clk 0:02:01.5]} 25. Rxc5 {[%clk 0:01:49.8]}
25... dxc5 {[%clk 0:01:57.6]} 26. Rxc5 {[%clk 0:01:50.7]} 26... Rxc5 {[%clk
0:01:52.4]} 27. Qxc5 {[%clk 0:01:48.8]} 27... Re8 {[%clk 0:01:43.2]} 28. Ne3
{[%clk 0:01:43.8]} 28... Nh5 {[%clk 0:01:33.4]} 29. g3 {[%clk 0:01:06.8]} 29...
g6 {[%clk 0:01:20.7]} 30. Kg2 {[%clk 0:01:04.6]} 30... f6 {[%clk 0:01:11]} 31.
Qd6 {[%clk 0:01:00.7]} 31... Kf7 {[%clk 0:01:00.3]} 32. Nc2 {[%clk 0:00:52.4]}
32... Rc8 {[%clk 0:00:59.4]} 33. Nb4 {[%clk 0:00:51.1]} 33... Qc7 {[%clk
0:00:57.9]} 34. Qa6 {[%clk 0:00:27.7]} 34... Qc5 {[%clk 0:00:48.7]} 35. Qb7
{[%clk 0:00:19]} 35... Rc7 {[%clk 0:00:42.2]} 36. Qa8 {[%clk 0:00:19.3]} 36...
Rc8 {[%clk 0:00:41.5]} 37. Qb7 {[%clk 0:00:19.6]} 37... Qc7 {[%clk 0:00:41.3]}
38. Qa6 {[%clk 0:00:15.4]} 38... Rb8 {[%clk 0:00:39.4]} 39. d6 {[%clk
0:00:07.9]} 39... Qb6 {[%clk 0:00:37]} 40. Qxb6 {[%clk 0:00:07.6]} 40... Rxb6
{[%clk 0:00:37.8]} 41. Ne1 {[%clk 0:00:04.8]} 41... Rxd6 {[%clk 0:00:36.6]} 42.
Nec2 {[%clk 0:00:05.4]} 42... Ng7 {[%clk 0:00:34.9]} 43. Ne3 {[%clk 0:00:05.1]}
43... Ne6 {[%clk 0:00:30.6]} 44. Ned5 {[%clk 0:00:05.8]} 44... Nd4 {[%clk
0:00:30.7]} 45. f3 {[%clk 0:00:05]} 45... h5 {[%clk 0:00:24.8]} 46. Kf2 {[%clk
0:00:05.4]} 46... g5 {[%clk 0:00:23.9]} 47. h4 {[%clk 0:00:05.6]} 47... gxh4
{[%clk 0:00:23.4]} 48. gxh4 {[%clk 0:00:06.5]} 48... Be6 {[%clk 0:00:21.9]} 49.
Ne3 {[%clk 0:00:06.1]} 49... Bb3 {[%clk 0:00:20.7]} 50. Bf1 {[%clk 0:00:05.9]}
50... Rd7 {[%clk 0:00:19.8]} 51. Bh3 {[%clk 0:00:04.4]} 51... Rc7 {[%clk
0:00:19.6]} 52. Ke1 {[%clk 0:00:02.8]} 52... Be6 {[%clk 0:00:19]} 53. Bxe6+
{[%clk 0:00:02.3]} 53... Kxe6 {[%clk 0:00:19.9]} 54. Kf2 {[%clk 0:00:02.2]}
54... Rc1 {[%clk 0:00:19.8]} 55. Ned5 {[%clk 0:00:02.8]} 55... Rh1 {[%clk
0:00:19.6]} 56. Nc7+ {[%clk 0:00:02.8]} 56... Kd7 {[%clk 0:00:17.9]} 57. Ncd5
{[%clk 0:00:03.3]} 57... Ke6 {[%clk 0:00:18.1]} 58. Nc7+ {[%clk 0:00:03.6]}
58... Kf7 {[%clk 0:00:18.8]} 59. Nbd5 {[%clk 0:00:03.5]} 59... Rh2+ {[%clk
0:00:18.9]} 60. Kg3 {[%clk 0:00:03.3]} 60... Rxb2 {[%clk 0:00:19.8]} 61. Nc3
{[%clk 0:00:03.5]} 61... Rb3 {[%clk 0:00:19.8]} 62. N3d5 {[%clk 0:00:02]} 62...
Rxf3+ {[%clk 0:00:19.9]} 63. Kg2 {[%clk 0:00:01.8]} 63... Rxa3 {[%clk
0:00:20.8]} 64. Na6 {[%clk 0:00:01.2]} 64... Rb3 {[%clk 0:00:19.9]} 65. Nb6
{[%clk 0:00:01.6]} 65... a3 {[%clk 0:00:19.5]} 66. Nc5 {[%clk 0:00:02.5]} 66...
Rb2+ {[%clk 0:00:19.4]} 67. Kg3 {[%clk 0:00:02.4]} 67... a2 {[%clk 0:00:20.3]}
68. Nc8 {[%clk 0:00:01.5]} 68... a1=Q {[%clk 0:00:20.1]} 69. Nd6+ {[%clk
0:00:02.4]} 69... Kg7 {[%clk 0:00:19.6]} 70. Nf5+ {[%clk 0:00:01.1]} 70... Nxf5+
{[%clk 0:00:18.7]} 71. exf5 {[%clk 0:00:02]} 71... Qa3+ {[%clk 0:00:18.6]} 72.
Nd3 {[%clk 0:00:01.7]} 72... Qxd3# {[%clk 0:00:18.9]} 0-1

[Event "Early-Titled-Tuesday-Blitz-June-18-2024"]
[Site "Chess.com"]
[Date "2024.06.18"]
[Round "8"]
[White "Losingexperience"]
[Black "doublesik"]
[Result "1-0"]
[WhiteElo "2767"]
[BlackElo "2578"]
[TimeControl "180+1"]
[EndTime "9:31:36 PDT"]
[Termination "Losingexperience won by resignation"]

1. e4 {[%clk 0:03:00.9]} 1... e6 {[%clk 0:02:57.4]} 2. d4 {[%clk 0:03:00.5]}
2... d5 {[%clk 0:02:57.8]} 3. e5 {[%clk 0:03:00.3]} 3... c5 {[%clk 0:02:58.5]}
4. c3 {[%clk 0:03:00.2]} 4... Nc6 {[%clk 0:02:59.1]} 5. Nf3 {[%clk 0:03:00.7]}
5... Bd7 {[%clk 0:02:59.7]} 6. Be2 {[%clk 0:02:58.3]} 6... Qb6 {[%clk
0:02:53.7]} 7. a3 {[%clk 0:02:53.8]} 7... f6 {[%clk 0:02:51.8]} 8. O-O {[%clk
0:02:52.7]} 8... c4 {[%clk 0:02:28.3]} 9. Nbd2 {[%clk 0:02:45.9]} 9... Qc7
{[%clk 0:02:24.5]} 10. Re1 {[%clk 0:02:43.5]} 10... Nge7 {[%clk 0:02:20.4]} 11.
Nf1 {[%clk 0:02:39.8]} 11... O-O-O {[%clk 0:02:10]} 12. Ng3 {[%clk 0:02:31.8]}
12... Ng6 {[%clk 0:01:59.9]} 13. b4 {[%clk 0:02:16.7]} 13... fxe5 {[%clk
0:01:53.8]} 14. b5 {[%clk 0:02:09.1]} 14... Na5 {[%clk 0:01:39.8]} 15. dxe5
{[%clk 0:02:09.1]} 15... Bc5 {[%clk 0:01:25.8]} 16. Rb1 {[%clk 0:01:57.5]} 16...
Nb3 {[%clk 0:01:24]} 17. Bg5 {[%clk 0:01:48.5]} 17... Rdf8 {[%clk 0:01:23.5]}
18. Nd4 {[%clk 0:01:41.8]} 18... Nxe5 {[%clk 0:01:17.1]} 19. Bf1 {[%clk
0:01:30]} 19... h6 {[%clk 0:01:01]} 20. Be3 {[%clk 0:01:29.3]} 20... Bxd4 {[%clk
0:00:52.8]} 21. Bxd4 {[%clk 0:01:26.8]} 21... Ng6 {[%clk 0:00:44.4]} 22. Bxg7
{[%clk 0:01:13]} 22... Qc5 {[%clk 0:00:43.1]} 23. Qc2 {[%clk 0:01:08.7]} 23...
Nf4 {[%clk 0:00:34.3]} 24. Bxh8 {[%clk 0:01:07.3]} 24... Rxh8 {[%clk 0:00:33.2]}
25. Re3 {[%clk 0:01:05.6]} 25... Qxb5 {[%clk 0:00:29]} 26. Qd1 {[%clk
0:00:54.9]} 26... Rf8 {[%clk 0:00:26.5]} 27. Qg4 {[%clk 0:00:51.3]} 27... Qc5
{[%clk 0:00:18.1]} 28. Qg7 {[%clk 0:00:49.9]} 28... Qxa3 {[%clk 0:00:11.5]} 29.
Rbe1 {[%clk 0:00:37.4]} 29... Qd6 {[%clk 0:00:11.2]} 30. Qxh6 {[%clk 0:00:34.7]}
30... a5 {[%clk 0:00:11.3]} 31. Rf3 {[%clk 0:00:33.7]} 31... Kc7 {[%clk
0:00:06.4]} 32. Qg7 {[%clk 0:00:23.2]} 32... Nh3+ {[%clk 0:00:06]} 33. Kh1
{[%clk 0:00:20.4]} 33... Nxf2+ {[%clk 0:00:03.5]} 34. Rxf2 {[%clk 0:00:19.8]}
34... Rxf2 {[%clk 0:00:03]} 35. Be2 {[%clk 0:00:16.4]} 35... a4 {[%clk
0:00:03.2]} 36. Bf3 {[%clk 0:00:16.4]} 36... a3 {[%clk 0:00:03.5]} 37. Nh5
{[%clk 0:00:09.6]} 37... a2 {[%clk 0:00:03.5]} 38. Nf6 {[%clk 0:00:09.9]} 38...
Kb6 {[%clk 0:00:02.2]} 39. Nxd7+ {[%clk 0:00:09.2]} 39... Ka7 {[%clk 0:00:01.6]}
40. h3 {[%clk 0:00:06.9]} 40... a1=Q {[%clk 0:00:02.2]} 41. Rxa1+ {[%clk
0:00:07]} 41... Nxa1 {[%clk 0:00:03]} 42. Qd4+ {[%clk 0:00:07.9]} 42... b6
{[%clk 0:00:03.5]} 43. Qxf2 {[%clk 0:00:08.3]} 43... Qxd7 {[%clk 0:00:04.2]} 44.
Qa2+ {[%clk 0:00:08.8]} 44... Kb7 {[%clk 0:00:04.9]} 45. Qxa1 {[%clk 0:00:09.3]}
45... e5 {[%clk 0:00:05.8]} 46. Qd1 {[%clk 0:00:08]} 46... Kc6 {[%clk
0:00:06.2]} 47. Qe2 {[%clk 0:00:07.9]} 47... Qd6 {[%clk 0:00:05.8]} 48. Qxc4+
{[%clk 0:00:07.8]} 48... Qc5 {[%clk 0:00:05.2]} 49. Bxd5+ {[%clk 0:00:08.3]}
49... Kd6 {[%clk 0:00:05.9]} 50. Bg8 {[%clk 0:00:07.5]} 50... Qf2 {[%clk
0:00:05.5]} 51. Qd5+ {[%clk 0:00:07.3]} 51... Ke7 {[%clk 0:00:06.1]} 52. Qxe5+
{[%clk 0:00:07.4]} 52... Kf8 {[%clk 0:00:06.8]} 53. Qb8+ {[%clk 0:00:05.7]}
53... Kg7 {[%clk 0:00:07.2]} 54. Bd5 {[%clk 0:00:03.8]} 54... Qe1+ {[%clk
0:00:07.2]} 55. Kh2 {[%clk 0:00:04.2]} 55... Qxc3 {[%clk 0:00:07.6]} 56. Qg3+
{[%clk 0:00:05.1]} 1-0

[Event "Early-Titled-Tuesday-Blitz-June-18-2024"]
[Site "Chess.com"]
[Date "2024.06.18"]
[Round "8"]
[White "Chaubunagungamaug1"]
[Black "MaestroCheck"]
[Result "1/2-1/2"]
[WhiteElo "2485"]
[BlackElo "2627"]
[TimeControl "180+1"]
[EndTime "9:31:38 PDT"]
[Termination "Game drawn - insufficient material"]

1. d4 {[%clk 0:02:59.7]} 1... d5 {[%clk 0:02:59.8]} 2. c4 {[%clk 0:02:59.7]}
2... c6 {[%clk 0:02:59.9]} 3. Nf3 {[%clk 0:02:59.7]} 3... Nf6 {[%clk 0:02:59.7]}
4. Nc3 {[%clk 0:02:59.7]} 4... e6 {[%clk 0:02:59.6]} 5. e3 {[%clk 0:02:59.2]}
5... Nbd7 {[%clk 0:02:58.1]} 6. Bd3 {[%clk 0:02:59.4]} 6... dxc4 {[%clk
0:02:57.8]} 7. Bxc4 {[%clk 0:03:00.3]} 7... b5 {[%clk 0:02:58]} 8. Bd3 {[%clk
0:03:00.2]} 8... b4 {[%clk 0:02:58.5]} 9. Ne4 {[%clk 0:03:00]} 9... Nxe4 {[%clk
0:02:57.1]} 10. Bxe4 {[%clk 0:03:00.9]} 10... Bb7 {[%clk 0:02:57.4]} 11. O-O
{[%clk 0:03:01]} 11... Be7 {[%clk 0:02:55.6]} 12. Qc2 {[%clk 0:02:59.4]} 12...
Rc8 {[%clk 0:02:54.6]} 13. a3 {[%clk 0:02:54.1]} 13... Nf6 {[%clk 0:02:52.4]}
14. axb4 {[%clk 0:02:37.5]} 14... Nxe4 {[%clk 0:02:41.4]} 15. Qxe4 {[%clk
0:02:38.4]} 15... Qb6 {[%clk 0:02:41.6]} 16. Bd2 {[%clk 0:02:20.7]} 16... O-O
{[%clk 0:02:19]} 17. Ne5 {[%clk 0:02:15.6]} 17... Rfd8 {[%clk 0:02:13.4]} 18.
Qf4 {[%clk 0:01:41.5]} 18... f6 {[%clk 0:02:08.2]} 19. Nc4 {[%clk 0:01:29.7]}
19... Qb5 {[%clk 0:02:06.9]} 20. Rfc1 {[%clk 0:01:12.8]} 20... Bxb4 {[%clk
0:01:57.2]} 21. Bxb4 {[%clk 0:01:13.7]} 21... Qxb4 {[%clk 0:01:58.1]} 22. Rxa7
{[%clk 0:01:13.5]} 22... c5 {[%clk 0:01:58.4]} 23. Nd6 {[%clk 0:00:54.2]} 23...
Qxb2 {[%clk 0:01:26]} 24. Raa1 {[%clk 0:00:38.9]} 24... Ra8 {[%clk 0:01:19.4]}
25. Rab1 {[%clk 0:00:36]} 25... Qd2 {[%clk 0:01:08.2]} 26. Nxb7 {[%clk
0:00:32.8]} 26... Rdb8 {[%clk 0:01:07.2]} 27. Nxc5 {[%clk 0:00:30.9]} 27... Rb2
{[%clk 0:01:04.5]} 28. Qe4 {[%clk 0:00:24.3]} 28... Qxf2+ {[%clk 0:01:03.1]} 29.
Kh1 {[%clk 0:00:23.7]} 29... Rab8 {[%clk 0:00:52.4]} 30. Rxb2 {[%clk 0:00:18.6]}
30... Qxb2 {[%clk 0:00:52]} 31. Qxe6+ {[%clk 0:00:17.5]} 31... Kh8 {[%clk
0:00:52]} 32. Rg1 {[%clk 0:00:16.7]} 32... Qc2 {[%clk 0:00:49.7]} 33. Nd7 {[%clk
0:00:14.9]} 33... Rd8 {[%clk 0:00:48.3]} 34. Nxf6 {[%clk 0:00:14.3]} 34... Qg6
{[%clk 0:00:44.4]} 35. Qe7 {[%clk 0:00:07.2]} 35... Rc8 {[%clk 0:00:40.6]} 36.
Nd7 {[%clk 0:00:06.1]} 36... Re8 {[%clk 0:00:40.5]} 37. Qc5 {[%clk 0:00:03.5]}
37... h6 {[%clk 0:00:37.1]} 38. Ne5 {[%clk 0:00:04.1]} 38... Qe4 {[%clk
0:00:37.7]} 39. Qc6 {[%clk 0:00:04.1]} 39... Rxe5 {[%clk 0:00:33.9]} 40. Qxe4
{[%clk 0:00:04.7]} 40... Rxe4 {[%clk 0:00:34.7]} 41. Re1 {[%clk 0:00:04.5]}
41... Kg8 {[%clk 0:00:34.9]} 42. Kg1 {[%clk 0:00:05.4]} 42... Kf7 {[%clk
0:00:35.7]} 43. Kf2 {[%clk 0:00:06.3]} 43... Ke6 {[%clk 0:00:36.3]} 44. Kf3
{[%clk 0:00:06.1]} 44... Kd5 {[%clk 0:00:35.9]} 45. Rc1 {[%clk 0:00:06.6]} 45...
Re8 {[%clk 0:00:36.6]} 46. Rc5+ {[%clk 0:00:07.2]} 46... Kd6 {[%clk 0:00:37.5]}
47. e4 {[%clk 0:00:06.7]} 47... Rf8+ {[%clk 0:00:37.8]} 48. Rf5 {[%clk
0:00:06.8]} 48... Ra8 {[%clk 0:00:37]} 49. Rd5+ {[%clk 0:00:07.3]} 49... Ke6
{[%clk 0:00:37.4]} 50. Re5+ {[%clk 0:00:07.9]} 50... Kd6 {[%clk 0:00:37.9]} 51.
Kf4 {[%clk 0:00:08.4]} 51... Ra2 {[%clk 0:00:34.8]} 52. Kg3 {[%clk 0:00:08.4]}
52... Ra3+ {[%clk 0:00:34.5]} 53. Kh4 {[%clk 0:00:08.5]} 53... Ra2 {[%clk
0:00:34.9]} 54. Rd5+ {[%clk 0:00:08.9]} 54... Ke6 {[%clk 0:00:35.1]} 55. Re5+
{[%clk 0:00:09.6]} 55... Kd6 {[%clk 0:00:35.6]} 56. Kh3 {[%clk 0:00:10.1]} 56...
Rd2 {[%clk 0:00:34.5]} 57. Rd5+ {[%clk 0:00:10]} 57... Ke6 {[%clk 0:00:35.1]}
58. Rd8 {[%clk 0:00:10.2]} 58... Re2 {[%clk 0:00:32.1]} 59. g3 {[%clk
0:00:09.3]} 59... Rxe4 {[%clk 0:00:32.1]} 60. Re8+ {[%clk 0:00:09.3]} 60... Kd5
{[%clk 0:00:31.8]} 61. Rxe4 {[%clk 0:00:09.4]} 61... Kxe4 {[%clk 0:00:32.4]} 62.
Kg4 {[%clk 0:00:09.9]} 62... g6 {[%clk 0:00:21.1]} 63. h4 {[%clk 0:00:10.3]}
63... Kxd4 {[%clk 0:00:18.8]} 64. h5 {[%clk 0:00:10.9]} 64... gxh5+ {[%clk
0:00:10.9]} 65. Kxh5 {[%clk 0:00:11.8]} 65... Ke4 {[%clk 0:00:11.5]} 66. Kg4
{[%clk 0:00:04.7]} 66... Ke5 {[%clk 0:00:10.7]} 67. Kh5 {[%clk 0:00:04.5]} 67...
Ke4 {[%clk 0:00:11.3]} 68. g4 {[%clk 0:00:03]} 68... Kf4 {[%clk 0:00:11.6]} 69.
Kh4 {[%clk 0:00:03.4]} 69... Kf3 {[%clk 0:00:11.4]} 70. Kh3 {[%clk 0:00:02.7]}
70... Kf4 {[%clk 0:00:11.9]} 71. Kh4 {[%clk 0:00:03.4]} 71... Kf3 {[%clk
0:00:12.4]} 72. Kh5 {[%clk 0:00:04]} 72... Kf4 {[%clk 0:00:12.6]} 73. Kxh6
{[%clk 0:00:03.3]} 73... Kxg4 {[%clk 0:00:13.2]} 1/2-1/2

[Event "Early-Titled-Tuesday-Blitz-June-18-2024"]
[Site "Chess.com"]
[Date "2024.06.18"]
[Round "8"]
[White "ural58"]
[Black "carloseduar100"]
[Result "1-0"]
[WhiteElo "2424"]
[BlackElo "2260"]
[TimeControl "180+1"]
[EndTime "9:31:39 PDT"]
[Termination "ural58 won on time"]

1. e4 {[%clk 0:02:43]} 1... e6 {[%clk 0:02:59.8]} 2. d4 {[%clk 0:02:42]} 2... d5
{[%clk 0:02:59.8]} 3. Nc3 {[%clk 0:02:41.9]} 3... Nf6 {[%clk 0:02:59.1]} 4. Bg5
{[%clk 0:02:40.8]} 4... Be7 {[%clk 0:02:58.6]} 5. e5 {[%clk 0:02:40]} 5... Nfd7
{[%clk 0:02:58.6]} 6. Bxe7 {[%clk 0:02:38.9]} 6... Qxe7 {[%clk 0:02:58.5]} 7. f4
{[%clk 0:02:38.8]} 7... a6 {[%clk 0:02:58.1]} 8. Qg4 {[%clk 0:02:36.7]} 8... O-O
{[%clk 0:02:33.5]} 9. Nf3 {[%clk 0:02:34.6]} 9... f5 {[%clk 0:02:31.7]} 10. Qh3
{[%clk 0:02:33.5]} 10... c5 {[%clk 0:02:30.4]} 11. g4 {[%clk 0:02:25.2]} 11...
cxd4 {[%clk 0:02:25]} 12. Nxd4 {[%clk 0:02:24.5]} 12... Nc6 {[%clk 0:02:23.1]}
13. O-O-O {[%clk 0:02:22.8]} 13... Nxd4 {[%clk 0:02:23.1]} 14. Rxd4 {[%clk
0:02:18.4]} 14... b5 {[%clk 0:02:22.3]} 15. Rg1 {[%clk 0:02:16.4]} 15... Qc5
{[%clk 0:02:10.3]} 16. Qe3 {[%clk 0:01:52.9]} 16... Bb7 {[%clk 0:02:07.1]} 17.
gxf5 {[%clk 0:01:51]} 17... Rxf5 {[%clk 0:02:06.9]} 18. Bd3 {[%clk 0:01:50.4]}
18... Raf8 {[%clk 0:01:35.6]} 19. Bxf5 {[%clk 0:01:46.1]} 19... Rxf5 {[%clk
0:01:36.1]} 20. Ne2 {[%clk 0:01:38.9]} 20... Nb6 {[%clk 0:01:13.9]} 21. Qc3
{[%clk 0:01:24.6]} 21... Qxc3 {[%clk 0:00:54.5]} 22. Nxc3 {[%clk 0:01:22.9]}
22... g6 {[%clk 0:00:54.7]} 23. b3 {[%clk 0:01:21.6]} 23... Nd7 {[%clk
0:00:53.7]} 24. Nd1 {[%clk 0:01:19.3]} 24... Nc5 {[%clk 0:00:50.4]} 25. Ne3
{[%clk 0:01:13.7]} 25... Rf7 {[%clk 0:00:50.8]} 26. f5 {[%clk 0:01:09.1]} 26...
exf5 {[%clk 0:00:45.8]} 27. Nxd5 {[%clk 0:01:08.6]} 27... Ne6 {[%clk 0:00:38.7]}
28. Rdd1 {[%clk 0:01:07.3]} 28... Kg7 {[%clk 0:00:37.3]} 29. Nf6 {[%clk
0:01:05.2]} 29... Rxf6 {[%clk 0:00:35.5]} 30. exf6+ {[%clk 0:01:04.5]} 30...
Kxf6 {[%clk 0:00:36.4]} 31. Rd7 {[%clk 0:01:02.8]} 31... Be4 {[%clk 0:00:35.8]}
32. Rxh7 {[%clk 0:01:01.8]} 32... g5 {[%clk 0:00:36]} 33. Rh6+ {[%clk
0:01:00.9]} 33... Ke5 {[%clk 0:00:35.9]} 34. Kd2 {[%clk 0:00:53.7]} 34... Nd4
{[%clk 0:00:32.7]} 35. Rh3 {[%clk 0:00:49.5]} 35... g4 {[%clk 0:00:30.4]} 36.
Re3 {[%clk 0:00:46.6]} 36... Nf3+ {[%clk 0:00:20.2]} 37. Rxf3 {[%clk 0:00:46.4]}
37... Bxf3 {[%clk 0:00:21.1]} 38. Ke3 {[%clk 0:00:42]} 38... f4+ {[%clk
0:00:20.7]} 39. Kf2 {[%clk 0:00:42.2]} 39... Be4 {[%clk 0:00:21]} 40. Rxg4
{[%clk 0:00:38.9]} 40... Bxc2 {[%clk 0:00:21.5]} 41. Rg5+ {[%clk 0:00:38.1]}
41... Ke4 {[%clk 0:00:21.6]} 42. Rc5 {[%clk 0:00:37.3]} 42... Bb1 {[%clk
0:00:21.7]} 43. a4 {[%clk 0:00:36]} 43... bxa4 {[%clk 0:00:18.3]} 44. bxa4
{[%clk 0:00:34.4]} 44... Bd3 {[%clk 0:00:18.9]} 45. h4 {[%clk 0:00:32.8]} 45...
Kd4 {[%clk 0:00:17.5]} 46. Rc8 {[%clk 0:00:31.3]} 46... Bc4 {[%clk 0:00:13]} 47.
Kf3 {[%clk 0:00:27.3]} 47... Bb3 {[%clk 0:00:11.8]} 48. a5 {[%clk 0:00:18.6]}
48... Ke5 {[%clk 0:00:11.6]} 49. Rf8 {[%clk 0:00:14.9]} 49... Bd5+ {[%clk
0:00:10.8]} 50. Kf2 {[%clk 0:00:15.3]} 50... Bc4 {[%clk 0:00:05.8]} 51. h5
{[%clk 0:00:15.1]} 51... Bd3 {[%clk 0:00:06.1]} 52. h6 {[%clk 0:00:14.9]} 52...
Bc2 {[%clk 0:00:03.9]} 53. Ra8 {[%clk 0:00:12.8]} 53... Bd3 {[%clk 0:00:04]} 54.
Rxa6 {[%clk 0:00:11.7]} 54... Bxa6 {[%clk 0:00:02.8]} 55. h7 {[%clk 0:00:11.8]}
55... Kd5 {[%clk 0:00:03.7]} 56. h8=Q {[%clk 0:00:11.9]} 56... Kc5 {[%clk
0:00:04.6]} 57. Qe5+ {[%clk 0:00:11.8]} 57... Kb4 {[%clk 0:00:04.8]} 58. Kf3
{[%clk 0:00:10.9]} 58... Bb5 {[%clk 0:00:05.4]} 59. Kxf4 {[%clk 0:00:11.5]}
59... Kxa5 {[%clk 0:00:05.9]} 60. Qc7+ {[%clk 0:00:11.2]} 60... Kb4 {[%clk
0:00:06]} 61. Ke5 {[%clk 0:00:11.8]} 61... Bc4 {[%clk 0:00:05.3]} 62. Kd4 {[%clk
0:00:12.3]} 62... Bb5 {[%clk 0:00:05.8]} 63. Qc5+ {[%clk 0:00:12.4]} 63... Ka5
{[%clk 0:00:05.9]} 64. Kc3 {[%clk 0:00:11.6]} 64... Ka6 {[%clk 0:00:05.9]} 65.
Kb4 {[%clk 0:00:11.7]} 1-0